bitfinex/quotes_SOLUSD_20250506
["timestamp","ask_amount","ask_price","bid_price","bid_amount"]
[1746550982876,49.83240764,143.18,143.12,21.82696277]
[1746550982877,49.83240764,143.19,143.15,49.83240764]
[1746550983751,49.83240764,143.18,143.14,49.83240764]
[1746550984785,25.63339282,143.19,143.12,21.82696277]
[1746550984988,49.83240764,143.17,143.13,49.83240764]
[1746550985169,49.83240764,143.18,143.14,49.83240764]
[1746550985471,49.83240764,143.19,143.15,49.83240764]
[1746550985777,49.83240764,143.17,143.13,49.83240764]
[1746550986164,49.83240764,143.18,143.13,49.83240764]
[1746550986489,49.83240764,143.18,143.14,49.83240764]
[1746550986988,49.83240764,143.18,143.13,49.83240764]
[1746550987186,49.83240764,143.17,143.14,6.98616738]
[1746550988583,49.83240764,143.18,143.14,6.98616738]
[1746550989192,26.0,143.2,143.14,74.28399349]
[1746550989390,49.83240764,143.19,143.14,74.28399349]
[1746550989693,49.83240764,143.19,143.15,49.83240764]
[1746550990001,49.83240764,143.21,143.16,49.83240764]
[1746550990151,49.83240764,143.2,143.17,14.78]
[1746550990971,49.83240764,143.21,143.17,14.78]
[1746550991179,49.83240764,143.21,143.17,64.61240764]
[1746550991484,49.83240764,143.22,143.18,6.98421567]
[1746550991663,27.6131,143.25,143.18,56.81662331]
[1746550991861,26.0,143.25,143.2,49.83240764]
[1746550992077,49.83240764,143.23,143.19,49.83240764]
[1746550992459,18.64964886,143.26,143.2,49.83240764]
[1746550992663,49.83240764,143.26,143.22,49.83240764]
[1746550992862,49.83240764,143.26,143.23,14.76]
[1746550993565,49.83240764,143.28,143.24,56.81369778]
[1746550993758,18.64964886,143.3,143.24,56.81369778]
[1746550993964,49.83240764,143.28,143.24,56.81369778]
[1746550994773,49.83240764,143.28,143.24,74.26692313]
[1746550994973,49.83240764,143.27,143.24,6.98129014]
[1746550995384,18.64964886,143.3,143.24,56.81369778]
[1746550995385,49.83240764,143.28,143.24,56.81369778]
[1746550995913,49.83240764,143.28,143.24,6.98129014]
[1746550996061,49.83240764,143.26,143.24,6.98129014]
[1746550996788,25.62807718,143.3,143.24,6.98129014]
[1746550997081,49.83240764,143.26,143.24,6.98129014]
[1746550997786,49.83240764,143.27,143.24,6.98129014]
[1746550999169,49.83240764,143.27,143.23,56.8141449]
[1746550999493,49.83240764,143.24,143.22,14.7]
[1746550999660,49.83240764,143.23,143.22,14.7]
[1746550999860,51.48759593,143.23,143.22,14.7]
[1746551000095,58.46937349,143.23,143.22,14.7]
[1746551000387,18.64964886,143.22,143.18,14.72]
[1746551000598,32.83794707,143.19,143.13,23.41162025]
[1746551000898,32.83794707,143.16,143.14,14.72]
[1746551001385,32.83794707,143.16,143.13,14.76]
[1746551001558,32.83794707,143.14,143.13,14.72]
[1746551001766,49.85375299,143.14,143.13,14.72]
[1746551002459,56.83992037,143.14,143.08,13.15638284]
[1746551002661,49.85375299,143.1,143.06,6.99007409]
[1746551002878,49.85375299,143.09,143.07,14.72]
[1746551003195,49.85375299,143.08,143.07,14.72]
[1746551003497,49.85375299,143.09,143.07,14.72]
[1746551004078,18.64964886,143.14,143.07,14.72]
[1746551004270,25.63581624,143.14,143.07,71.56319198]
[1746551004587,49.85375299,143.11,143.07,71.56319198]
[1746551005096,49.85375299,143.12,143.08,49.85375299]
[1746551005386,18.64964886,143.14,143.08,49.85375299]
[1746551005586,75.85375299,143.15,143.09,49.85375299]
[1746551005587,49.85375299,143.13,143.09,49.85375299]
[1746551005797,49.85375299,143.15,143.11,49.85375299]
[1746551005964,49.85375299,143.15,143.13,6.98665548]
[1746551006689,49.85375299,143.16,143.13,6.98665548]
[1746551006998,1.5541,143.2,143.13,74.30704719]
[1746551007168,49.85375299,143.16,143.13,24.4532942]
[1746551007571,18.64964886,143.2,143.13,24.4532942]
[1746551007772,49.85375299,143.17,143.13,24.4532942]
[1746551007974,49.85375299,143.16,143.13,24.4532942]
[1746551009285,49.85375299,143.14,143.13,6.98665548]
[1746551009882,82.8,143.19,143.13,6.98665548]
[1746551010199,49.85375299,143.14,143.13,6.98665548]
[1746551010788,49.85375299,143.14,143.12,21.706946]
[1746551010991,49.85375299,143.13,143.12,6.986946]
[1746551012099,44.64964886,143.17,143.11,6.98763189]
[1746551012387,49.85375299,143.13,143.11,21.66763189]
[1746551014078,49.85375299,143.14,143.11,21.66763189]
[1746551014972,26.0,143.17,143.11,71.52138488]
[1746551015176,49.85375299,143.16,143.12,49.85375299]
[1746551015374,82.8,143.19,143.12,49.85375299]
[1746551015573,82.8,143.19,143.11,39.13671161]
[1746551015574,49.85375299,143.17,143.13,49.85375299]
[1746551015991,49.85375299,143.16,143.12,49.85375299]
[1746551016187,49.85375299,143.16,143.13,6.98665548]
[1746551016399,49.85375299,143.17,143.13,6.98665548]
[1746551016603,82.8,143.19,143.14,49.85375299]
[1746551016906,49.85375299,143.19,143.15,49.85375299]
[1746551017086,49.85375299,143.19,143.13,30.5950942]
[1746551017087,49.85375299,143.18,143.14,49.85375299]
[1746551017293,49.85375299,143.17,143.13,80.44884719]
[1746551017788,49.85375299,143.16,143.13,6.98665548]
[1746551017992,49.85375299,143.15,143.13,6.98665548]
[1746551018189,49.85375299,143.16,143.13,6.98665548]
[1746551018372,127.44964886,143.2,143.14,49.85375299]
[1746551018574,49.85375299,143.21,143.16,49.85375299]
[1746551018779,49.85375299,143.21,143.17,64.53375299]
[1746551018979,49.85375299,143.18,143.17,14.68]
[1746551019195,49.85375299,143.2,143.17,14.68]
[1746551019380,49.85375299,143.21,143.17,14.68]
[1746551019985,14.76,143.25,143.18,49.85375299]
[1746551020194,49.85375299,143.22,143.18,49.85375299]
[1746551020405,49.85375299,143.22,143.19,6.98372791]
[1746551020792,49.85375299,143.21,143.19,6.98372791]
[1746551021113,49.85375299,143.22,143.19,6.98372791]
[1746551022211,49.85375299,143.2,143.19,6.98372791]
[1746551022782,49.85375299,143.21,143.19,6.98372791]
[1746551022979,49.85375299,143.2,143.18,6.98413447]
[1746551023185,18.64964886,143.24,143.13,14.68]
[1746551023186,49.85375299,143.19,143.13,14.68]
[1746551023498,49.85375299,143.15,143.13,14.68]
[1746551023696,27.14454659,143.21,143.14,6.98616738]
[1746551024083,49.85375299,143.17,143.14,6.98616738]
[1746551024904,49.85375299,143.17,143.14,24.45158585]
[1746551025082,49.85375299,143.19,143.15,49.85375299]
[1746551025285,49.85375299,143.2,143.16,49.85375299]
[1746551025501,49.85375299,143.21,143.17,49.85375299]
[1746551025680,49.85375299,143.21,143.19,6.98372791]
[1746551029106,49.85375299,143.22,143.19,6.98372791]
[1746551029307,49.85375299,143.21,143.19,6.98372791]
[1746551029803,49.85375299,143.2,143.19,6.98372791]
[1746551030008,49.85375299,143.21,143.19,6.98372791]
[1746551030926,26.0,143.24,143.18,14.64]
[1746551030927,49.85375299,143.2,143.18,14.64]
[1746551032005,49.85375299,143.2,143.19,6.98372791]
[1746551032192,49.85375299,143.21,143.19,6.98372791]
[1746551033002,49.85375299,143.2,143.15,17.46413658]
[1746551033212,49.85375299,143.18,143.15,32.08413658]
[1746551033387,49.85375299,143.17,143.15,32.08413658]
[1746551033705,49.85375299,143.17,143.16,6.98493077]
[1746551033914,49.85375299,143.17,143.15,6.98558315]
[1746551034085,49.85375299,143.16,143.15,6.98558315]
[1746551034286,49.85375299,143.17,143.15,6.98558315]
[1746551034501,1.6153,143.2,143.15,6.98558315]
[1746551034502,49.85375299,143.18,143.15,6.98558315]
[1746551038510,49.85375299,143.17,143.15,6.98558315]
[1746551038709,49.85375299,143.16,143.14,6.98599032]
[1746551039093,49.85375299,143.17,143.14,6.98599032]
[1746551039395,49.85375299,143.16,143.14,6.98599032]
[1746551039601,49.85375299,143.16,143.12,82.19005299]
[1746551039928,18.64964886,143.19,143.1,136.2803]
[1746551039929,32.8637654,143.13,143.1,14.58]
[1746551040102,32.8637654,143.11,143.1,14.58]
[1746551040299,32.8637654,143.12,143.1,21.56812019]
[1746551040693,32.8637654,143.13,143.1,39.03842067]
[1746551041005,32.8637654,143.14,143.1,71.90218607]
[1746551041202,32.8637654,143.13,143.1,39.03842067]
[1746551041597,32.8637654,143.12,143.1,21.56812019]
[1746551042007,32.8637654,143.12,143.1,6.98812019]
[1746551042203,32.8637654,143.11,143.1,6.98812019]
[1746551042514,32.8637654,143.11,143.08,6.989097]
[1746551042721,32.8637654,143.1,143.08,21.569097]
[1746551042907,32.8637654,143.11,143.08,21.569097]
[1746551043302,44.64964886,143.15,143.08,54.4328624]
[1746551043611,32.8637654,143.14,143.1,32.8637654]
[1746551044496,32.8637654,143.14,143.11,6.98763189]
[1746551044705,32.8637654,143.15,143.11,39.85139729]
[1746551045220,32.8637654,143.14,143.11,6.98763189]
[1746551045705,32.8637654,143.13,143.11,6.98763189]
[1746551046825,32.8637654,143.13,143.1,6.98812019]
[1746551047022,32.8637654,143.11,143.08,21.529097]
[1746551047602,51.51341426,143.15,143.06,6.99007409]
[1746551047603,32.8637654,143.09,143.06,6.99007409]
[1746551047828,32.8637654,143.08,143.07,14.54]
[1746551048729,32.8637654,143.08,143.05,6.99056274]
[1746551048927,32.8637654,143.08,143.05,21.53056274]
[1746551051639,82.8,143.12,143.07,32.8637654]
[1746551051807,58.8637654,143.14,143.09,32.8637654]
[1746551052006,32.8637654,143.14,143.1,47.3837654]
[1746551052433,32.8637654,143.12,143.1,14.52]
[1746551052638,32.8637654,143.11,143.1,14.52]
[1746551052938,32.8637654,143.12,143.1,21.50798019]
[1746551053104,32.8637654,143.11,143.1,21.50798019]
[1746551053302,82.8,143.16,143.1,21.50798019]
[1746551053534,32.8637654,143.13,143.1,21.50798019]
[1746551053844,32.8637654,143.15,143.11,32.8637654]
[1746551054246,32.8637654,143.14,143.1,71.84204607]
[1746551055452,32.8637654,143.12,143.1,21.50798019]
[1746551056023,32.8637654,143.13,143.1,21.50798019]
[1746551057355,32.8637654,143.12,143.1,21.50798019]
[1746551057937,32.8637654,143.11,143.1,14.52]
[1746551058142,32.8637654,143.11,143.09,21.50841951]
[1746551058444,32.8637654,143.12,143.09,21.50841951]
[1746551058814,32.8637654,143.11,143.09,21.50841951]
[1746551059216,32.8637654,143.1,143.03,1.6326]
[1746551059426,101.44964886,143.13,143.03,1.6326]
[1746551059427,32.8637654,143.06,143.05,21.51056274]
[1746551059631,32.8637654,143.07,143.05,21.51056274]
[1746551059827,32.8637654,143.08,143.05,21.51056274]
[1746551060843,32.8637654,143.08,143.05,38.98696959]
[1746551061158,32.8637654,143.1,143.06,32.8637654]
[1746551061324,32.8637654,143.11,143.07,32.8637654]
[1746551061644,32.8637654,143.1,143.06,32.8637654]
[1746551063031,32.8637654,143.1,143.07,6.98958551]
[1746551063233,32.8637654,143.11,143.07,39.85335091]
[1746551063425,32.8637654,143.11,143.07,57.3273147]
[1746551064418,32.8637654,143.12,143.08,32.8637654]
[1746551065047,32.8637654,143.12,143.09,6.98860856]
[1746551066324,32.8637654,143.11,143.09,6.98860856]
[1746551067117,32.8637654,143.1,143.08,6.989097]
[1746551067421,32.8637654,143.09,143.06,6.99007409]
[1746551067919,32.8637654,143.1,143.06,39.85383949]
[1746551068629,32.8637654,143.09,143.06,6.99007409]
[1746551070443,101.44964886,143.13,143.02,14.52]
[1746551070444,32.8637654,143.07,143.02,14.52]
[1746551070648,32.8637654,143.03,143.01,6.992518]
[1746551070846,32.8637654,143.03,142.99,17.48353677]
[1746551070847,32.8637654,143.02,143.0,6.9928257]
[1746551071146,32.8637654,143.01,142.99,21.51328203]
[1746551071451,32.8637654,143.0,142.99,21.51328203]
[1746551071941,32.8637654,143.0,142.95,87.19958244]
[1746551072134,101.44964886,143.04,142.96,54.37872902]
[1746551072327,32.8637654,143.0,142.96,71.86613808]
[1746551072648,32.8637654,142.99,142.96,39.00237268]
[1746551072835,32.8637654,143.0,142.96,71.86613808]
[1746551073352,32.8637654,142.98,142.96,6.99496362]
[1746551073536,32.8637654,142.99,142.96,6.99496362]
[1746551074041,32.8637654,142.99,142.96,21.51496362]
[1746551074238,32.8637654,143.01,142.97,32.8637654]
[1746551075446,32.8637654,143.01,142.98,6.99398517]
[1746551075641,32.8637654,143.01,142.97,32.8637654]
[1746551075642,18.64964886,143.02,142.97,6.99433405]
[1746551075846,32.8637654,142.99,142.97,6.99433405]
[1746551076948,32.8637654,143.0,142.97,6.99433405]
[1746551077150,32.8637654,143.01,142.97,57.34428536]
[1746551077331,32.8637654,143.0,142.97,6.99433405]
[1746551077735,32.8637654,142.99,142.97,6.99433405]
[1746551078056,32.8637654,143.0,142.97,21.49433405]
[1746551078350,18.64964886,143.02,142.97,21.49433405]
[1746551078548,32.8637654,143.0,142.97,21.49433405]
[1746551079734,32.8637654,142.98,142.96,6.99474991]
[1746551079929,32.8637654,142.97,142.94,6.99594235]
[1746551080155,32.8637654,142.95,142.93,14.48]
[1746551080348,32.8637654,142.94,142.92,14.48]
[1746551080553,32.8637654,142.93,142.91,6.99741095]
[1746551080754,32.8637654,142.92,142.9,6.99773157]
[1746551081054,32.8637654,142.92,142.9,21.49773157]
[1746551084862,32.8637654,142.91,142.9,21.49773157]
[1746551085068,32.8637654,142.91,142.9,14.5]
[1746551085258,32.8637654,142.94,142.9,14.5]
[1746551085454,32.8637654,142.91,142.9,14.5]
[1746551086048,32.8637654,142.91,142.87,6.99937005]
[1746551086249,32.8637654,142.9,142.87,21.45937005]
[1746551086472,32.8637654,142.9,142.87,6.99937005]
[1746551086661,32.8637654,142.89,142.87,6.99937005]
[1746551086847,32.8637654,142.9,142.87,6.99937005]
[1746551087859,32.8637654,142.91,142.87,57.36156059]
[1746551088674,32.8637654,142.91,142.87,71.82156059]
[1746551089749,32.8637654,142.9,142.87,38.95779519]
[1746551090983,32.8637654,142.91,142.87,71.82156059]
[1746551091877,32.8637654,142.9,142.87,21.45937005]
[1746551092859,32.8637654,142.89,142.87,6.99937005]
[1746551093977,32.8637654,142.89,142.86,6.99986]
[1746551094169,32.8637654,142.88,142.86,6.99986]
[1746551094562,32.8637654,142.88,142.85,7.00016482]
[1746551095464,32.8637654,142.86,142.83,7.00133025]
[1746551095665,32.8637654,142.85,142.83,7.00133025]
[1746551095864,32.8637654,142.84,142.82,21.42166248]
[1746551096068,84.3522,142.89,142.82,21.42166248]
[1746551096069,32.8637654,142.85,142.82,21.42166248]
[1746551096482,32.8637654,142.86,142.82,54.28542788]
[1746551098678,32.8637654,142.85,142.82,21.42166248]
[1746551098876,32.8637654,142.83,142.81,14.4]
[1746551099079,32.8637654,142.83,142.8,7.00280112]
[1746551099381,32.8637654,142.82,142.8,7.00280112]
[1746551100102,32.8637654,142.83,142.8,7.00280112]
[1746551100305,82.8,142.86,142.8,39.86656652]
[1746551100470,32.8637654,142.84,142.8,39.86656652]
[1746551100866,32.8637654,142.83,142.8,7.00280112]
[1746551101804,32.8637654,142.83,142.79,21.40312225]
[1746551101970,32.8637654,142.82,142.79,21.40312225]
[1746551102591,101.44964886,142.86,142.79,21.40312225]
[1746551102592,82.8,142.86,142.8,32.8637654]
[1746551102775,32.8637654,142.85,142.81,32.8637654]
[1746551102969,32.8637654,142.85,142.79,38.91135111]
[1746551102970,26.0,142.87,142.82,32.8637654]
[1746551103175,32.8637654,142.86,142.82,32.8637654]
[1746551105004,32.8637654,142.86,142.83,7.00133025]
[1746551105179,26.0,142.87,142.83,7.00133025]
[1746551105369,32.8637654,142.86,142.83,7.00133025]
[1746551105877,32.8637654,142.85,142.83,7.00133025]
[1746551107080,32.8637654,142.86,142.82,32.8637654]
[1746551108397,42.0322,142.89,142.81,17.50483708]
[1746551108572,32.8637654,142.88,142.84,32.8637654]
[1746551108772,32.8637654,142.86,142.84,14.38]
[1746551108982,32.8637654,142.86,142.84,21.38065885]
[1746551109184,32.8637654,142.85,142.82,14.4]
[1746551109477,32.8637654,142.84,142.82,14.4]
[1746551109677,32.8637654,142.85,142.82,14.4]
[1746551109990,32.8637654,142.87,142.83,32.8637654]
[1746551110399,14.48,142.89,142.83,32.8637654]
[1746551110587,47.3437654,142.89,142.85,32.8637654]
[1746551111172,14.48,142.89,142.86,6.99986]
[1746551111371,32.8637654,142.89,142.86,6.99986]
[1746551111596,26.0,142.9,142.86,6.99986]
[1746551111597,32.8637654,142.88,142.86,6.99986]
[1746551113301,32.8637654,142.87,142.85,7.00035001]
[1746551113798,32.8637654,142.88,142.85,7.00035001]
[1746551114179,26.0,142.9,142.85,7.00035001]
[1746551114373,32.8637654,142.88,142.85,7.00035001]
[1746551114703,32.8637654,142.88,142.85,24.50122505]
[1746551115279,32.8637654,142.91,142.87,39.86313545]
[1746551115482,117.2860654,142.92,142.88,32.8637654]
[1746551115695,82.8,142.92,142.88,20.60682978]
[1746551115892,103.40682978,142.92,142.88,20.60682978]
[1746551116205,20.60682978,142.94,142.89,20.60682978]
[1746551116500,110.4411,142.96,142.91,20.60682978]
[1746551116697,20.60682978,142.93,142.87,53.27779519]
[1746551116904,20.60682978,142.94,142.9,20.60682978]
[1746551117105,20.60682978,142.95,142.91,20.60682978]
[1746551117400,20.60682978,142.95,142.93,6.99643181]
[1746551117598,20.60682978,142.96,142.93,6.99643181]
[1746551117784,32.95434472,142.96,142.93,6.99643181]
[1746551117987,32.95434472,142.94,142.93,6.99643181]
[1746551118807,32.95434472,142.94,142.92,21.41671897]
[1746551119107,32.95434472,142.95,142.92,21.41671897]
[1746551119681,47.33434472,142.97,142.93,32.95434472]
[1746551120199,32.95434472,142.97,142.93,32.95434472]
[1746551120380,32.95434472,142.97,142.92,38.90902235]
[1746551120381,32.95434472,142.96,142.92,71.86336707]
[1746551120801,26.0,142.98,142.92,71.86336707]
[1746551120802,58.95434472,142.98,142.93,32.95434472]
[1746551121506,32.95434472,142.97,142.93,32.95434472]
[1746551121801,32.95434472,142.97,142.94,6.99594235]
[1746551122001,58.95434472,142.98,142.94,24.48579823]
[1746551122212,58.95434472,142.98,142.94,57.44014295]
[1746551122581,14.38,143.01,142.96,32.95434472]
[1746551122795,32.95434472,142.99,142.95,32.95434472]
[1746551123682,14.38,143.01,142.97,32.95434472]
[1746551123990,32.95434472,143.01,142.97,47.37434472]
[1746551124191,26.0,143.02,142.97,47.37434472]
[1746551124400,32.95434472,143.02,142.98,32.95434472]
[1746551124792,32.95434472,143.04,142.99,32.95434472]
[1746551124980,101.44964886,143.06,143.02,32.95434472]
[1746551124981,115.75434472,143.06,143.02,32.95434472]
[1746551125180,32.95434472,143.07,143.02,47.37434472]
[1746551125600,141.75434472,143.08,143.03,32.95434472]
[1746551125805,115.75434472,143.08,143.04,6.99105145]
[1746551125991,1.6576,143.11,143.05,32.95434472]
[1746551126184,32.95434472,143.09,143.05,32.95434472]
[1746551127282,32.95434472,143.1,143.06,32.95434472]
[1746551127485,82.8,143.12,143.07,47.35434472]
[1746551127705,32.95434472,143.12,143.08,32.95434472]
[1746551127908,32.95434472,143.12,143.09,6.98860856]
[1746551128705,26.0,143.13,143.1,32.95434472]
[1746551129108,58.95434472,143.13,143.09,39.94295328]
[1746551129712,58.95434472,143.13,143.09,6.98860856]
[1746551129911,58.95434472,143.13,143.09,39.94295328]
[1746551131032,58.95434472,143.13,143.09,6.98860856]
[1746551131210,58.95434472,143.13,143.07,14.4]
[1746551131508,32.95434472,143.11,143.08,6.9889322]
[1746551133097,32.95434472,143.1,143.07,21.38942233]
[1746551135115,32.95434472,143.11,143.07,54.34376705]
[1746551135613,32.95434472,143.09,143.06,6.9899181]
[1746551135915,32.95434472,143.07,143.05,21.35052579]
[1746551136210,32.95434472,143.08,143.05,21.35052579]
[1746551136406,32.95434472,143.1,143.06,32.95434472]
[1746551136604,130.11434472,143.12,143.07,32.95434472]
[1746551136914,32.95434472,143.11,143.07,32.95434472]
[1746551137117,32.95434472,143.1,143.06,32.95434472]
[1746551137314,32.98676348,143.13,143.07,6.98958551]
[1746551137498,26.0,143.13,143.08,32.95434472]
[1746551137706,32.95434472,143.12,143.08,32.95434472]
[1746551139414,32.95434472,143.12,143.09,6.98860856]
[1746551140419,26.0,143.13,143.09,6.98860856]
[1746551140595,26.0,143.13,143.09,39.94295328]
[1746551140799,58.95434472,143.13,143.09,39.94295328]
[1746551141719,32.95434472,143.12,143.09,6.98860856]
[1746551143019,58.95434472,143.13,143.09,39.94295328]
[1746551143203,1.5282,143.14,143.1,32.95434472]
[1746551143204,32.95434472,143.14,143.1,32.95434472]
[1746551143400,32.95434472,143.14,143.1,47.27434472]
[1746551143601,32.95434472,143.14,143.11,6.98763189]
[1746551144018,14.36,143.16,143.11,6.98763189]
[1746551144220,32.95434472,143.15,143.11,39.94197661]
[1746551144729,40.36,143.16,143.11,39.94197661]
[1746551144901,32.95434472,143.15,143.11,39.94197661]
[1746551145301,40.36,143.16,143.11,39.94197661]
[1746551145531,32.95434472,143.15,143.11,39.94197661]
[1746551145721,14.36,143.16,143.12,20.53993513]
[1746551145920,20.53993513,143.16,143.12,20.53993513]
[1746551146516,20.53993513,143.15,143.11,44.99664674]
[1746551147019,103.33993513,143.17,143.13,20.53993513]
[1746551147229,26.0,143.18,143.14,20.53993513]
[1746551147726,26.0,143.18,143.14,32.85032318]
[1746551148023,115.65032318,143.19,143.15,47.17032318]
[1746551148516,32.85032318,143.19,143.15,47.17032318]
[1746551149703,32.85032318,143.2,143.17,6.98470349]
[1746551151709,58.85032318,143.21,143.17,39.83502667]
[1746551152513,82.8,143.23,143.18,32.85032318]
[1746551152722,32.85032318,143.22,143.18,32.85032318]
[1746551152922,40.3,143.24,143.19,32.85032318]
[1746551153124,82.8,143.25,143.2,47.13032318]
[1746551153431,32.85032318,143.24,143.2,47.13032318]
[1746551153627,82.8,143.25,143.21,32.85032318]
[1746551153830,32.85032318,143.25,143.22,6.98226504]
[1746551154332,32.85032318,143.25,143.2,47.13032318]
[1746551154513,32.85032318,143.25,143.2,54.11329365]
[1746551155432,32.85032318,143.24,143.2,54.11329365]
[1746551156726,32.85032318,143.25,143.2,54.11329365]
[1746551157312,32.85032318,143.23,143.2,14.28]
[1746551157530,32.85032318,143.21,143.18,21.24402069]
[1746551157731,32.85032318,143.2,143.17,6.98447834]
[1746551157921,32.85032318,143.2,143.17,21.24447834]
[1746551158233,32.85032318,143.21,143.17,21.24447834]
[1746551159214,32.85032318,143.2,143.17,21.2446158]
[1746551160313,6.98248276,143.22,143.15,6.4084]
[1746551160314,32.85032318,143.18,143.15,6.9855708]
[1746551160816,32.85032318,143.18,143.15,21.2455708]
[1746551161117,32.85032318,143.2,143.16,32.85032318]
[1746551162045,129.95032318,143.23,143.18,32.85032318]
[1746551162215,32.85032318,143.23,143.18,32.85032318]
[1746551162623,58.85032318,143.24,143.19,32.85032318]
[1746551162824,32.85032318,143.23,143.18,32.85032318]
[1746551163224,32.85032318,143.23,143.19,39.83405109]
[1746551163519,32.85032318,143.21,143.19,6.98372791]
[1746551163947,32.85032318,143.22,143.19,6.98372791]
[1746551164541,32.85032318,143.21,143.19,6.98372791]
[1746551164852,32.85032318,143.22,143.19,6.98372791]
[1746551165041,32.85032318,143.23,143.19,39.83405109]
[1746551165241,32.85032318,143.23,143.19,57.29337087]
[1746551165643,32.85032318,143.23,143.19,39.83405109]
[1746551165856,32.85032318,143.22,143.19,6.98372791]
[1746551166445,82.8,143.25,143.19,6.98372791]
[1746551166648,32.85032318,143.23,143.19,39.83405109]
[1746551166849,32.85032318,143.23,143.19,57.29337087]
[1746551167354,32.85032318,143.25,143.21,39.83307578]
[1746551167745,20.5118191,143.25,143.21,27.4945717]
[1746551168278,84.4015,143.3,143.23,20.5118191]
[1746551168438,20.5118191,143.28,143.24,20.5118191]
[1746551168639,20.5118191,143.26,143.21,24.4396341]
[1746551168865,20.5118191,143.25,143.21,24.4396341]
[1746551169086,20.5118191,143.25,143.21,44.9514532]
[1746551169242,20.5118191,143.26,143.22,20.5118191]
[1746551169756,32.82586744,143.24,143.2,21.2430187]
[1746551169958,32.82586744,143.24,143.2,54.06888614]
[1746551170142,32.82586744,143.25,143.2,54.06888614]
[1746551170343,32.82586744,143.24,143.2,54.06888614]
[1746551170560,32.82586744,143.24,143.2,21.2430187]
[1746551170954,32.82586744,143.22,143.2,14.26]
[1746551171272,32.82586744,143.23,143.2,21.24313203]
[1746551171938,89.78066403,143.26,143.2,21.24313203]
[1746551171939,32.82586744,143.21,143.2,14.26]
[1746551173366,32.82586744,143.21,143.15,136.2989]
[1746551173367,39.80862004,143.21,143.15,6.98567935]
[1746551173543,32.82586744,143.16,143.15,6.98567935]
[1746551173951,32.82586744,143.16,143.1,20.7844]
[1746551174151,32.82586744,143.16,143.12,32.82586744]
[1746551174349,101.44964886,143.2,143.13,32.82586744]
[1746551174350,32.82586744,143.17,143.13,32.82586744]
[1746551174748,32.82586744,143.18,143.14,32.82586744]
[1746551175277,32.82586744,143.18,143.15,6.98567935]
[1746551176863,32.82586744,143.17,143.14,6.9859458]
[1746551177054,32.82586744,143.16,143.14,6.9859458]
[1746551177258,32.82586744,143.15,143.09,17.47032673]
[1746551177458,32.82586744,143.12,143.1,6.98812019]
[1746551177663,15.841,143.17,143.1,57.28428811]
[1746551177664,32.82586744,143.14,143.1,57.28428811]
[1746551178267,32.82586744,143.14,143.1,39.81398763]
[1746551178459,32.82586744,143.13,143.1,6.98812019]
[1746551178653,32.82586744,143.12,143.1,6.98812019]
[1746551179642,32.82586744,143.15,143.11,32.82586744]
[1746551179838,47.08586744,143.17,143.13,32.82586744]
[1746551180057,47.08586744,143.17,143.13,47.10586744]
[1746551180058,32.82586744,143.17,143.13,47.10586744]
[1746551180567,32.82586744,143.18,143.14,32.82586744]
[1746551182148,32.82586744,143.18,143.15,6.98567935]
[1746551182351,32.82586744,143.16,143.13,21.26648171]
[1746551182968,32.82586744,143.15,143.13,14.28]
[1746551183673,32.82586744,143.14,143.09,14.3]
[1746551183846,32.82586744,143.12,143.09,14.3]
[1746551184048,32.82586744,143.11,143.09,21.28854091]
[1746551184661,32.82586744,143.11,143.09,14.3]
[1746551184852,32.82586744,143.11,143.08,21.28887773]
[1746551185677,32.82586744,143.11,143.08,14.28]
[1746551185857,32.82586744,143.11,143.04,241.8376]
[1746551185858,32.82586744,143.09,143.04,6.99105145]
[1746551186176,32.82586744,143.08,143.04,54.11691889]
[1746551186875,6.98736895,143.12,143.05,32.82586744]
[1746551187079,32.82586744,143.09,143.05,32.82586744]
[1746551187778,32.82586744,143.07,143.04,21.29105145]
[1746551188078,25.63681303,143.12,143.02,6.99202908]
[1746551188079,32.82586744,143.05,143.02,6.99202908]
[1746551188258,32.82586744,143.08,143.01,6.99244618]
[1746551188259,32.82586744,143.03,143.01,6.99244618]
[1746551188461,32.82586744,143.02,143.01,6.99244618]
[1746551188772,32.82586744,143.03,143.01,6.99244618]
[1746551189147,32.82586744,143.02,142.98,6.99398517]
[1746551189352,32.82586744,143.01,142.99,14.3]
[1746551189557,82.8,143.07,142.99,14.3]
[1746551189756,32.82586744,143.04,143.0,32.82586744]
[1746551190274,32.82586744,143.03,143.01,6.992518]
[1746551190447,32.82586744,143.02,143.0,6.99291171]
[1746551190851,32.82586744,143.03,143.0,6.99291171]
[1746551191677,32.82586744,143.01,142.98,6.99358663]
[1746551191883,32.82586744,143.0,142.98,6.99358663]
[1746551192067,32.82586744,143.0,142.98,21.29358663]
[1746551192385,32.82586744,142.99,142.96,21.2545462]
[1746551192685,101.44964886,143.05,142.96,21.2945462]
[1746551192686,32.82586744,143.0,142.96,21.2945462]